bitfinex-derivatives/quotes_ETHF0:USTF0_20241230
["timestamp","ask_amount","ask_price","bid_price","bid_amount"]
[1735541538987,1.3294,3427.8,3427.1,3.2078]
[1735541539295,1.3294,3427.8,3426.8,0.4241]
[1735541539296,0.29241,3427.2,3426.8,0.4241]
[1735541539491,1.3514,3427.1,3426.5,3.2078]
[1735541539688,0.29242,3427.0,3426.7,0.29245]
[1735541539894,3.2078,3427.0,3426.5,3.6319]
[1735541540086,3.2078,3427.0,3426.6,0.29245]
[1735541540991,3.2078,3427.0,3426.5,3.6319]
[1735541541196,3.2078,3427.0,3426.7,0.29245]
[1735541541702,3.2078,3427.0,3426.9,0.29243]
[1735541543090,3.2078,3427.0,3426.7,2.32979999]
[1735541543293,3.2078,3427.0,3426.8,0.29243]
[1735541543493,3.2078,3427.0,3426.9,0.29243]
[1735541544495,4.57994138,3427.2,3427.1,0.29241]
[1735541544796,3.2078,3427.7,3427.4,0.29239]
[1735541544797,4.57994138,3427.5,3427.4,0.29239]
[1735541546200,0.43863653,3427.6,3427.5,0.29238]
[1735541547198,0.43863653,3427.6,3427.5,0.72018]
[1735541547403,6.59941138,3427.9,3427.5,0.8534]
[1735541547600,6.59941138,3427.9,3427.7,2.32979999]
[1735541547803,6.59941138,3427.9,3427.8,0.29235]
[1735541548195,6.59941138,3427.9,3427.5,0.4256]
[1735541548498,6.59941138,3427.9,3427.5,0.71798]
[1735541548706,2.45805473,3427.9,3427.5,0.71798]
[1735541549198,2.45805473,3427.9,3427.5,0.4256]
[1735541549403,2.45805473,3427.9,3427.8,0.29235]
[1735541550099,6.59941138,3427.9,3427.8,0.29235]
[1735541551315,2.01947,3427.9,3427.8,0.29235]
[1735541554509,2.01947,3427.9,3427.7,2.32979999]
[1735541554808,2.01947,3427.9,3427.8,0.29235]
[1735541555112,2.01947,3427.9,3427.5,0.8893]
[1735541555316,2.01947,3427.9,3427.7,0.29236]
[1735541556109,2.01947,3427.9,3427.5,0.8893]
[1735541556310,2.01947,3427.9,3427.8,0.29235]
[1735541557009,5.46096941,3427.9,3427.7,2.62215999]
[1735541557204,5.46096941,3427.9,3427.7,0.29236]
[1735541557410,5.46096941,3427.9,3427.6,0.29237]
[1735541557611,0.4352,3427.8,3427.6,0.29237]
[1735541558012,0.4352,3427.8,3427.5,0.4256]
[1735541558308,3.87669941,3427.8,3427.7,0.29236]
[1735541559208,4.31528944,3427.8,3427.7,0.29236]
[1735541562619,0.87379003,3427.8,3427.7,0.29236]
[1735541563113,0.43859003,3427.8,3427.7,0.29236]
[1735541563517,6.59941138,3427.9,3427.8,0.29235]
[1735541564525,5.46097399,3427.9,3427.8,0.29235]
[1735541567823,5.89955771,3427.9,3427.8,0.29235]
[1735541568021,5.89955771,3427.9,3427.5,0.4256]
[1735541568226,0.4425,3427.8,3427.5,0.4256]
[1735541568423,0.4425,3427.8,3427.5,0.29238]
[1735541569221,3.44150399,3427.7,3427.4,3.2078]
[1735541569428,0.8594,3427.6,3427.4,3.2078]
[1735541570524,3.88013691,3427.5,3427.4,3.2078]
[1735541571529,5.3109543,3427.5,3426.9,3.50023]
[1735541571725,0.2924,3427.3,3426.9,3.2078]
[1735541571932,0.29239,3427.4,3426.9,3.2078]
[1735541572126,0.4283,3427.2,3426.9,3.2078]
[1735541572329,0.4283,3427.2,3426.5,5.53759999]
[1735541572826,4.57994138,3427.1,3426.9,0.29242]
[1735541573022,0.8688,3427.0,3426.9,0.29242]
[1735541573227,0.8688,3427.0,3426.8,2.32979999]
[1735541573431,0.8688,3427.0,3426.9,0.29243]
[1735541573638,4.75215585,3427.0,3426.9,0.29243]
[1735541575025,4.75215585,3427.0,3426.6,0.29245]
[1735541576029,3.44472293,3426.8,3426.6,0.29245]
[1735541577230,3.44472293,3426.7,3426.6,0.29245]
[1735541577427,3.44472293,3426.7,3426.5,3.50026]
[1735541577627,0.4376,3426.6,3426.5,3.50026]
[1735541577830,0.4376,3426.6,3426.5,3.2078]
[1735541578532,0.4376,3426.6,3426.5,3.50027]
[1735541579229,3.88232293,3426.6,3426.5,3.50027]
[1735541579630,3.88232293,3426.6,3426.5,3.2078]
[1735541580138,3.88232293,3426.6,3426.5,3.50027]
[1735541580333,0.4376,3426.6,3426.5,3.50027]
[1735541581124,3.44472293,3426.7,3426.6,0.29246]
[1735541582636,0.8688,3427.0,3426.9,0.29243]
[1735541583334,0.8688,3427.0,3426.9,0.71433]
[1735541583635,3.44472293,3427.1,3426.9,3.6297]
[1735541583832,3.44472293,3427.1,3427.0,0.29242]
[1735541584036,3.44472293,3427.1,3427.0,0.71202]
[1735541584535,3.44472293,3427.1,3427.0,1.15502]
[1735541585035,2.76052293,3427.1,3427.0,1.15502]
[1735541585336,5.96832293,3427.6,3427.5,0.29238]
[1735541585930,2.76052293,3427.6,3427.5,0.29238]
[1735541586840,2.76052293,3427.6,3427.4,3.11685723]
[1735541587334,2.76052293,3427.6,3427.0,3.2078]
[1735541587538,8.2078,3427.6,3427.0,3.2078]
[1735541587836,0.29238,3427.5,3427.0,3.2078]
[1735541588134,0.29238,3427.5,3426.6,2.32979999]
[1735541588331,0.29241,3427.2,3426.6,2.62224999]
[1735541588634,0.29241,3427.2,3426.5,3.2078]
[1735541588635,0.73012,3427.1,3426.5,3.50026]
[1735541588839,0.4279,3427.0,3426.6,0.29246]
[1735541589033,3.2078,3426.8,3426.3,0.29248]
[1735541589232,0.4429,3426.7,3426.4,0.29247]
[1735541589537,0.4429,3426.7,3426.5,0.29246]
[1735541589839,0.43869143,3426.6,3426.5,0.29246]
[1735541590137,0.43869143,3426.6,3426.4,0.29247]
[1735541590739,0.43869143,3426.6,3426.5,0.29247]
[1735541592338,0.43869143,3426.6,3426.2,0.4497]
[1735541593337,0.43869143,3426.6,3426.5,0.29247]
[1735541594236,0.4429,3426.7,3426.6,0.29246]
[1735541595030,0.88165342,3426.7,3426.6,0.29246]
[1735541595435,0.43875342,3426.7,3426.6,0.29246]
[1735541595634,0.43875342,3426.7,3426.6,2.62225999]
[1735541595939,3.2078,3426.8,3426.7,0.29245]
[1735541596136,3.67579942,3427.1,3427.0,0.29242]
[1735541596436,3.67579942,3427.1,3427.0,3.79421999]
[1735541597337,3.2078,3427.8,3427.6,0.29237]
[1735541598141,3.2078,3427.8,3427.2,3.2078]
[1735541598142,0.43863361,3427.7,3427.5,0.29238]
[1735541598333,0.43863361,3427.7,3427.2,3.2078]
[1735541598534,0.43863361,3427.7,3427.6,0.29237]
[1735541599240,0.43863361,3427.7,3427.2,3.2078]
[1735541599642,0.43863361,3427.7,3427.6,0.29237]
[1735541599831,0.43863361,3427.7,3427.5,0.29238]
[1735541600033,0.43863361,3427.7,3427.2,3.2078]
[1735541600638,0.43863361,3427.7,3427.6,0.29237]
[1735541600844,0.43863361,3427.7,3427.3,0.2924]
[1735541601138,0.43863361,3427.7,3427.4,0.29238]
[1735541602250,0.43863361,3427.7,3427.2,3.2078]
[1735541602542,0.43863361,3427.7,3427.5,0.29238]
[1735541602746,0.43863361,3427.7,3427.6,0.29237]
[1735541605638,0.43863361,3427.8,3427.7,0.29236]
[1735541611142,0.43863361,3427.8,3427.7,3.50016]
[1735541611848,0.43863361,3427.8,3427.7,0.29236]
[1735541615250,0.43863361,3427.8,3427.7,2.62215999]
[1735541616650,0.43863361,3427.8,3427.7,0.29236]
[1735541624460,2.01947,3427.9,3427.8,0.29235]
[1735541625659,2.45805875,3427.9,3427.8,0.29235]
[1735541627359,2.45805875,3427.9,3427.8,0.74755]
[1735541629261,2.45805875,3427.9,3427.6,1.46337]
[1735541629961,2.45805875,3427.9,3427.6,1.171]
[1735541630363,5.0262516,3427.8,3427.7,0.29236]
[1735541630864,5.0262516,3427.8,3427.6,1.171]
[1735541631051,5.0262516,3427.8,3427.7,0.29236]
[1735541631254,0.43858875,3427.8,3427.6,1.46337]
[1735541631450,0.43858875,3427.8,3427.6,0.29237]
[1735541632062,0.43858875,3427.8,3427.7,0.29236]
[1735541632258,0.43858875,3427.8,3427.4,4.3788]
[1735541632462,0.43858875,3427.8,3427.4,4.67118]
[1735541633062,0.43858875,3427.8,3427.4,4.3788]
[1735541633260,4.58766285,3427.7,3427.4,4.3788]
[1735541633460,4.58766285,3427.7,3427.4,3.2078]
[1735541633651,0.4152,3427.6,3427.4,3.2078]
[1735541633855,0.887,3427.5,3427.4,3.2078]
[1735541634457,5.9132516,3427.5,3427.4,3.2078]
[1735541634664,5.9132516,3427.5,3427.4,3.50019]
[1735541635468,5.4775516,3427.5,3427.4,5.82998999]
[1735541635762,5.0262516,3427.5,3427.4,5.82998999]
[1735541636467,0.4152,3427.6,3427.5,0.29238]
[1735541637573,0.85382244,3427.6,3427.5,0.29238]
[1735541638464,5.44148529,3427.6,3427.5,0.29238]
[1735541639765,5.02628529,3427.6,3427.5,0.29238]
[1735541640568,5.02628529,3427.7,3427.6,0.29237]
[1735541640871,5.02628529,3427.7,3427.6,3.06016999]
[1735541641464,5.02628529,3427.8,3427.7,0.29236]
[1735541647875,5.02628529,3427.8,3427.6,3.50079999]
[1735541648178,5.02628529,3427.8,3427.7,0.29236]
[1735541648769,12.12472376,3427.8,3427.7,0.29236]
[1735541649975,6.16354916,3427.8,3427.7,0.29236]
[1735541650176,6.16354916,3427.8,3427.6,2.22418884]
[1735541650372,6.16354916,3427.8,3427.7,0.29236]
[1735541650373,12.12472376,3427.8,3427.7,0.29236]
[1735541652072,12.12472376,3427.8,3427.5,0.29238]
[1735541652371,12.12472376,3427.8,3427.4,3.2078]
[1735541652779,5.72492672,3427.6,3427.4,3.50018]
[1735541652977,0.8538,3427.5,3427.4,3.50018]
[1735541653179,1.2707,3427.5,3427.4,3.50018]
[1735541653980,13.39542376,3427.5,3427.4,0.29238]
[1735541658584,13.39542376,3427.5,3427.2,3.50079999]
[1735541658884,13.39542376,3427.5,3427.3,0.29239]
[1735541659088,13.39542376,3427.5,3427.3,0.2924]
[1735541659287,6.39979704,3427.4,3427.3,0.29239]
[1735541660586,12.12472376,3427.4,3427.3,0.29239]
[1735541661790,6.39979704,3427.4,3427.3,0.29239]
[1735541662585,5.03662663,3427.4,3427.3,0.29239]
[1735541663892,4.59800419,3427.4,3427.3,0.29239]
[1735541664290,4.59800419,3427.4,3427.3,1.31610311]
[1735541667186,5.72492672,3427.4,3427.3,1.02371311]
[1735541667384,11.66817504,3427.4,3427.3,1.31611311]
[1735541667988,11.66817504,3427.4,3427.2,1.171]
[1735541668195,0.4279,3427.3,3427.2,1.46341]
[1735541669094,0.86652244,3427.3,3427.2,1.46341]
[1735541669796,0.86652244,3427.3,3427.2,0.29241]
[1735541670492,0.43862244,3427.3,3427.2,1.31612311]
[1735541670990,5.72492672,3427.4,3427.2,1.02371311]
[1735541671199,5.72492672,3427.4,3427.3,0.2924]
[1735541671494,4.59710448,3427.4,3427.3,0.2924]
[1735541672188,3.44750066,3427.4,3427.3,0.2924]
[1735541672993,3.44750066,3427.4,3427.3,1.31611311]
[1735541674397,4.59710448,3427.4,3427.3,1.31611311]
[1735541675501,5.05310448,3427.5,3427.4,0.29239]
[1735541675905,5.05310448,3427.5,3427.3,1.31610311]
[1735541676405,5.05310448,3427.5,3427.3,0.29239]
[1735541676803,4.59710448,3427.4,3427.3,0.29239]
[1735541677001,4.59710448,3427.4,3427.1,3.2078]
[1735541677200,0.29241,3427.2,3426.7,3.2078]
[1735541677502,0.414,3427.1,3426.8,0.29244]
[1735541677999,0.4368,3427.0,3426.8,0.29244]
[1735541678197,6.16172672,3427.0,3426.8,2.62138664]
[1735541678800,6.16172672,3427.0,3426.8,2.32894664]
[1735541678998,6.16172672,3427.0,3426.9,0.29243]
[1735541679203,0.4368,3427.0,3426.9,0.29243]
[1735541682006,5.03145831,3427.0,3426.8,2.32894664]
[1735541682706,4.59465831,3426.9,3426.8,2.32894664]
[1735541685716,5.03145831,3427.0,3426.8,2.62138664]
[1735541687409,5.03145831,3427.0,3426.8,2.32894664]
[1735541689502,4.59465831,3426.9,3426.8,2.32894664]
[1735541690408,4.59465831,3426.9,3426.8,2.62138664]
[1735541690909,4.59465831,3426.9,3426.8,2.32894664]
[1735541691707,4.59465831,3426.9,3426.8,2.62138664]
[1735541692012,5.03337619,3426.9,3426.8,2.62138664]
[1735541692713,5.03337619,3426.9,3426.8,2.32894664]
[1735541694316,0.43871788,3426.9,3426.8,2.32894664]
[1735541694516,0.43871788,3426.9,3426.4,3.2078]
[1735541694710,3.50024,3426.8,3426.4,3.2078]
[1735541694905,0.4367,3426.7,3426.4,3.2078]
[1735541695808,4.59320736,3426.5,3426.4,3.2078]
[1735541696214,4.59320736,3426.5,3426.4,1.02438715]
[1735541696814,4.59320736,3426.5,3426.4,1.31685715]
[1735541697411,5.45530736,3426.5,3426.4,1.31685715]
[1735541698317,5.89402524,3426.5,3426.4,0.29247]
[1735541698521,5.89402524,3426.5,3426.4,0.74157]
[1735541698817,5.89402524,3426.5,3426.4,0.29247]
[1735541699013,5.89402524,3426.5,3426.3,2.51021812]
[1735541699219,5.89402524,3426.5,3426.4,0.29247]
[1735541699719,0.8621,3426.5,3426.4,0.29247]
[1735541702018,4.7440407,3426.5,3426.4,0.29247]
[1735541707225,4.2980407,3426.5,3426.4,0.74817]
[1735541707926,3.8819407,3426.5,3426.4,0.74817]
[1735541708828,2.29502997,3426.7,3426.4,0.4557]
[1735541709121,2.29502997,3426.7,3426.6,5.83046406]
[1735541709523,2.29502997,3426.8,3426.6,5.53800406]
[1735541709725,2.29502997,3426.8,3426.7,0.29245]
[1735541712729,3.44318254,3426.9,3426.8,0.29244]
[1735541713031,3.44318254,3426.9,3426.8,1.46344]
[1735541719030,5.03189751,3427.0,3426.8,1.171]
[1735541719228,5.03189751,3427.0,3426.9,2.62263406]
[1735541719431,5.03189751,3427.0,3426.9,3.05233406]
[1735541720426,4.59320736,3427.0,3426.9,3.05233406]
[1735541720733,4.59320736,3427.0,3426.9,2.75040178]
[1735541720932,4.59320736,3427.0,3426.9,3.04283178]
[1735541721946,12.01783711,3427.1,3427.0,0.29242]
[1735541727430,12.01783711,3427.1,3427.0,3.50022]
[1735541727637,12.01783711,3427.1,3427.0,3.92032]
[1735541728141,0.43869015,3427.1,3427.0,3.92032]
[1735541728834,0.43869015,3427.1,3427.0,3.50022]
[1735541729237,3.44766261,3427.1,3427.0,3.50022]
[1735541730038,3.44766261,3427.1,3427.0,3.2078]
[1735541730740,3.44766261,3427.1,3427.0,3.50022]
[1735541731435,5.74504941,3427.1,3427.0,3.2078]
[1735541731941,5.74504941,3427.1,3426.7,1.17]
[1735541732645,8.95284941,3427.1,3426.6,5.53800406]
[1735541732945,4.59676351,3426.8,3426.6,5.53800406]
[1735541733146,0.8797,3426.7,3426.6,5.53800406]
[1735541733441,1.3354,3426.7,3426.6,5.53800406]
[1735541733642,5.93216351,3426.7,3426.6,5.53800406]
[1735541734243,5.93216351,3426.7,3426.6,5.83046406]
[1735541734745,6.37085366,3426.7,3426.6,5.83046406]
[1735541735846,5.91515366,3426.7,3426.6,5.83046406]
[1735541736044,1.31839015,3426.7,3426.6,5.83046406]
[1735541736441,0.43869015,3426.7,3426.6,5.83046406]
[1735541737247,3.44743966,3426.8,3426.7,0.29245]
[1735541737747,3.44743966,3426.8,3426.7,0.72385]
[1735541738143,2.2981362,3426.8,3426.7,0.72385]
[1735541739039,3.88611743,3426.9,3426.8,0.29244]
[1735541741445,0.43867777,3426.9,3426.8,0.29244]
[1735541742647,4.59676351,3426.9,3426.8,0.29244]
[1735541742953,4.59676351,3426.9,3426.7,0.29245]
[1735541743144,4.59676351,3426.9,3426.6,5.53800406]
[1735541743645,5.03544128,3426.9,3426.6,3.2078]
[1735541743840,5.32788128,3426.9,3426.3,3.68021812]
[1735541744344,5.03544128,3426.9,3426.3,3.68021812]
[1735541744539,5.03544128,3426.9,3426.4,0.29247]
[1735541744942,0.8613,3427.0,3426.3,3.68021812]
[1735541744943,5.72492672,3426.6,3426.3,3.68021812]
[1735541745150,5.72492672,3426.6,3426.5,0.29247]
[1735541746944,4.59759651,3426.6,3426.5,0.29247]
[1735541751347,4.59759651,3426.6,3426.3,3.50020406]
[1735541751554,0.4215,3426.5,3426.4,0.29247]
[1735541752754,5.45777428,3426.5,3426.4,0.29247]
[1735541754753,0.43867777,3426.5,3426.4,0.29247]
[1735541756152,3.44851495,3426.5,3426.4,0.29247]
[1735541757750,3.22801583,3426.5,3426.4,0.52041131]
[1735541758556,3.6213,3427.0,3426.4,0.52041131]
[1735541758557,2.29868956,3426.8,3426.7,0.29245]
[1735541759954,0.43867777,3426.9,3426.8,0.29244]
[1735541760163,0.88647777,3426.9,3426.8,0.29244]
[1735541761157,0.43867777,3426.9,3426.8,0.29244]
[1735541766863,0.4135,3427.0,3426.9,0.29243]
[1735541767063,0.4135,3427.0,3426.9,2.62263406]
[1735541768256,0.85217585,3427.0,3426.9,2.62263406]
[1735541769156,0.85217585,3427.0,3426.9,2.33020406]
[1735541769463,0.85217585,3427.0,3426.6,2.62266406]
[1735541769654,0.85217585,3427.0,3426.3,5.53800406]
[1735541769862,4.05997585,3427.0,3426.5,0.29247]
[1735541770054,4.05997585,3427.0,3426.3,5.53800406]
[1735541770357,4.35240585,3427.0,3426.3,5.83048406]
[1735541770756,4.59759651,3426.6,3426.3,5.83048406]
[1735541770952,1.2879,3426.5,3426.3,5.83048406]
[1735541771156,1.2879,3426.5,3426.4,0.29247]
[1735541771764,1.2879,3426.5,3426.3,5.53800406]
[1735541771965,6.32417236,3426.5,3426.3,5.53800406]
[1735541772462,6.32417236,3426.5,3426.4,0.29247]
[1735541774460,6.32417236,3426.5,3426.3,5.53800406]
[1735541774664,6.32417236,3426.5,3426.3,5.83048406]
[1735541774869,6.32417236,3426.5,3426.0,2.33020406]
[1735541775063,6.32417236,3426.5,3426.0,2.62270406]
[1735541775255,6.32417236,3426.5,3426.0,2.33020406]
[1735541775467,6.32417236,3426.5,3426.2,0.29249]
[1735541775659,0.43867585,3426.4,3426.2,0.29249]
[1735541775864,5.03627236,3426.4,3426.2,0.29249]
[1735541776164,5.03627236,3426.4,3426.3,0.29248]
[1735541776466,5.03627236,3426.4,3426.2,0.29249]
[1735541776660,5.03627236,3426.4,3426.3,0.29248]
[1735541776860,5.03627236,3426.4,3426.0,2.33020406]
[1735541777164,0.43867585,3426.4,3426.2,0.29249]
[1735541777457,0.43867585,3426.4,3426.0,2.33020406]
[1735541777660,0.43867585,3426.4,3426.2,0.29249]
[1735541778261,5.72492672,3426.4,3426.3,0.29248]
[1735541778764,5.72492672,3426.4,3426.3,2.62268406]
[1735541779662,0.43867585,3426.4,3426.3,2.62268406]
[1735541781168,2.29741519,3426.4,3426.3,2.62268406]
[1735541782066,2.29741519,3426.5,3426.4,0.29247]
[1735541782370,2.29741519,3426.5,3426.4,2.62267406]
[1735541783271,2.29741519,3426.6,3426.4,2.33020406]
[1735541783569,2.29741519,3426.6,3426.5,2.62267406]
[1735541784170,2.29741519,3426.6,3426.5,3.79267406]
[1735541784767,2.29741519,3426.7,3426.6,0.29246]
[1735541785966,2.29741519,3426.7,3426.6,0.71916]
[1735541786873,2.29741519,3426.7,3426.6,3.92696]
[1735541787070,2.29741519,3426.7,3426.6,4.37696]
[1735541787271,2.29741519,3426.8,3426.6,4.0845]
[1735541787571,2.29741519,3426.8,3426.7,0.29245]
[1735541788271,2.29741519,3426.9,3426.6,4.0845]
[1735541788473,2.29741519,3426.9,3426.8,2.62264406]
[1735541791375,0.427,3427.0,3426.9,0.29243]
[1735541792875,0.8656892,3427.0,3426.9,0.29243]
[1735541794776,0.4386892,3427.0,3426.9,0.29243]
[1735541796176,0.4386892,3427.1,3427.0,0.29242]
[1735541797277,0.4386892,3427.1,3427.0,3.50022]
[1735541798675,0.39647904,3427.1,3427.0,3.50022]
[1735541799074,5.45978788,3427.3,3427.0,3.2078]
[1735541799274,3.16052667,3427.3,3427.2,2.62261406]
[1735541801477,0.8644,3427.3,3427.2,2.62261406]
[1735541803678,3.16052667,3427.3,3427.2,2.62261406]
[1735541804679,3.16052667,3427.3,3427.0,3.2078]
[1735541804976,0.44,3427.2,3427.0,3.50022]
[1735541805378,0.44,3427.2,3427.0,3.2078]
[1735541805580,0.44,3427.2,3427.1,0.29241]
[1735541808283,2.73532556,3427.2,3427.1,0.29241]
[1735541809286,0.44,3427.2,3427.1,0.29241]
[1735541810481,0.61327558,3427.5,3427.1,5.53800406]
[1735541810685,0.2935894,3427.5,3427.4,2.62259406]
[1735541811586,0.8264,3427.7,3427.4,2.33020406]
[1735541811887,0.8264,3427.7,3427.6,0.29237]
[1735541812090,0.8264,3427.7,3427.6,1.46137]
[1735541815785,0.8264,3427.7,3427.2,1.169]
[1735541815987,0.8264,3427.7,3427.1,5.83041406]
[1735541816185,0.29238,3427.6,3427.1,3.2078]
[1735541816391,3.2078,3427.3,3426.7,3.2078]
[1735541816587,0.4203,3427.2,3426.6,8.28421124]
[1735541816794,3.2078,3426.9,3426.6,8.28421124]
[1735541817191,3.2078,3426.9,3426.7,0.29245]
[1735541817492,3.2078,3426.9,3426.3,1.168]
[1735541817793,3.2078,3426.9,3426.3,1.46048]
[1735541817994,3.2078,3426.9,3426.4,0.29247]
[1735541818194,3.2078,3426.9,3426.3,1.168]
[1735541818396,3.2078,3426.9,3426.7,0.29244]
[1735541818695,3.2078,3426.9,3426.8,0.29244]
[1735541819585,3.2078,3426.9,3426.8,2.62264406]
[1735541820189,3.2078,3426.9,3426.8,0.29244]
[1735541821099,3.2078,3426.9,3426.8,2.62264406]
[1735541821400,3.85573706,3427.1,3427.0,0.29242]
[1735541822683,3.44143706,3427.1,3427.0,0.73582]
[1735541822896,3.44143706,3427.5,3427.4,0.29239]
[1735541823195,3.44143706,3427.5,3427.4,1.46139]
[1735541823993,5.46308788,3427.7,3427.4,1.46139]
[1735541823994,3.44143706,3427.6,3427.4,1.169]
[1735541824193,3.44143706,3427.6,3427.5,0.29238]
[1735541826492,3.88005953,3427.6,3427.5,0.29238]
[1735541827198,3.88005953,3427.6,3427.5,3.50018]
[1735541827498,3.44143706,3427.6,3427.5,3.50018]
[1735541831003,3.44143706,3427.6,3427.5,5.83038406]
[1735541831201,3.44143706,3427.6,3427.5,6.28238406]
[1735541832702,0.4485,3427.7,3427.6,0.29237]
[1735541834202,0.4485,3427.7,3427.6,3.50017]
[1735541838408,0.4485,3427.7,3427.6,3.95577]
[1735541840710,0.4485,3427.7,3427.6,4.19460608]
[1735541842914,0.4485,3427.7,3427.6,3.95577]
[1735541846115,3.88993706,3427.7,3427.6,3.95577]
[1735541847114,4.3285304,3427.7,3427.6,3.95577]
[1735541848112,0.4485,3427.7,3427.6,3.95577]
[1735541849821,0.4485,3427.7,3427.6,0.74797]
[1735541852918,0.4485,3427.7,3427.6,3.95577]
[1735541855214,0.4485,3427.7,3427.6,3.50017]
[1735541859024,0.8668,3427.7,3427.6,3.50017]
[1735541859723,0.8668,3427.7,3427.6,0.29237]
[1735541860025,0.8668,3427.7,3427.6,3.50017]
[1735541861725,0.8668,3427.7,3427.6,3.93457]
[1735541864027,0.8668,3427.7,3427.6,0.72677]
[1735541864526,0.8668,3427.7,3427.6,3.93457]
[1735541864728,0.8668,3427.7,3427.6,0.72677]
[1735541864926,4.74681135,3427.7,3427.6,3.93457]
[1735541866131,1.30537429,3427.7,3427.6,3.50017]
[1735541866325,1.30537429,3427.7,3427.6,4.52371377]
[1735541867331,0.8668,3427.7,3427.6,4.52371377]
[1735541868031,0.4485,3427.7,3427.6,4.52371377]
[1735541868930,5.48246217,3427.7,3427.6,4.52371377]
[1735541870127,5.48246217,3427.7,3427.6,5.69171377]
[1735541871528,5.03396217,3427.7,3427.6,5.69171377]
[1735541871735,2.10278978,3427.7,3427.6,6.71525754]
[1735541872233,2.10278978,3427.7,3427.6,7.16725754]
[1735541873233,3.45037693,3427.9,3427.6,6.87488754]
[1735541873425,3.45037693,3427.9,3427.8,2.33943754]
[1735541874240,3.45037693,3427.9,3427.8,2.61978041]
[1735541874442,3.45037693,3427.9,3427.8,9.45192433]
[1735541875339,3.45037693,3427.9,3427.8,2.61978041]
[1735541876836,3.45037693,3427.9,3427.8,3.78778041]
[1735541877941,6.60542672,3428.4,3428.1,0.29233]
[1735541878237,0.18272709,3428.3,3428.2,0.29232]
[1735541878428,6.60542672,3428.4,3428.2,0.29232]
[1735541878633,0.18272539,3428.3,3428.2,0.29232]
[1735541878829,0.18272539,3428.3,3428.1,2.32743041]
[1735541879039,0.8805,3428.4,3428.1,2.32743041]
[1735541879235,0.8805,3428.4,3428.2,0.29232]
[1735541880231,0.8805,3428.4,3428.1,2.32743041]
[1735541880435,0.8805,3428.4,3428.3,0.29231]
[1735541880634,1.06322341,3428.4,3428.3,0.29231]
[1735541881742,6.48912714,3428.4,3428.3,0.29231]
[1735541882337,6.30640373,3428.4,3428.3,0.29231]
[1735541882543,6.48912616,3428.4,3428.3,0.29231]
[1735541882743,6.48912597,3428.4,3428.3,0.29231]
[1735541882944,6.30640373,3428.4,3428.3,0.29231]
[1735541885944,0.8805,3428.4,3428.3,0.29231]
[1735541887350,0.8805,3428.4,3428.3,3.50011]
[1735541888942,0.8805,3428.4,3428.3,0.29231]
[1735541889142,0.8805,3428.4,3428.2,0.29232]
[1735541889349,0.8805,3428.4,3428.0,1.45933]
[1735541889648,0.8805,3428.4,3428.3,0.29231]
[1735541889849,0.8805,3428.4,3428.1,0.29233]
[1735541890347,12.02926592,3428.4,3428.1,0.29233]
[1735541890547,12.02926592,3428.4,3428.0,1.167]
[1735541890744,12.02926592,3428.4,3428.2,0.29232]
[1735541891350,6.60542672,3428.4,3428.1,0.29233]
[1735541892152,6.60542672,3428.4,3428.0,1.45933]
[1735541892752,5.72492672,3428.3,3428.0,1.45933]
[1735541893141,5.72492672,3428.3,3428.0,1.167]
[1735541893647,5.72492672,3428.3,3428.2,0.29232]
[1735541893952,5.72492672,3428.3,3428.0,1.167]
[1735541894154,11.58738491,3428.3,3428.1,0.29233]
[1735541894548,11.58738491,3428.3,3428.2,0.29232]
[1735541894955,11.58738491,3428.3,3428.0,1.167]
[1735541895648,11.58738491,3428.3,3428.2,0.29232]
[1735541896257,11.58738491,3428.3,3428.2,1.31559942]
[1735541898254,5.86245819,3428.3,3428.2,1.31559942]
[1735541900752,11.58738491,3428.3,3428.2,1.31559942]
[1735541902359,11.58738491,3428.3,3428.2,1.02309942]
[1735541902658,11.58738491,3428.3,3428.2,1.31541942]
[1735541907061,11.77010698,3428.3,3428.2,1.31541942]
[1735541907262,11.77010694,3428.3,3428.2,1.31541942]
[1735541907860,11.77010694,3428.3,3428.2,1.72721942]
[1735541908165,11.58738491,3428.3,3428.2,1.72721942]
[1735541908664,0.43853988,3428.3,3428.2,1.72721942]
[1735541909759,4.59841273,3428.3,3428.2,1.72721942]
[1735541911266,0.43853988,3428.3,3428.2,1.72721942]
[1735541912261,6.1634666,3428.5,3428.4,0.2923]
[1735541912468,6.1634666,3428.5,3428.4,1.02327942]
[1735541912667,6.1634666,3428.5,3428.4,1.31557942]
[1735541913668,11.58955465,3428.5,3428.4,1.31557942]
[1735541915269,3.44912007,3428.5,3428.4,8.14772334]
[1735541916364,3.44912007,3428.5,3428.4,9.45103642]
[1735541916763,3.44912007,3428.6,3428.5,0.29229]
[1735541916970,3.44912007,3428.6,3428.5,2.6188825]
[1735541919270,3.44912007,3428.7,3428.5,2.3265925]
[1735541919572,3.44912007,3428.7,3428.6,4.37249]
[1735541919965,3.44912007,3428.7,3428.3,6.83214392]
[1735541920271,0.4394,3428.6,3428.5,4.55286331]
[1735541920474,1.2973,3428.6,3428.5,4.55286331]
[1735541921773,6.33466665,3428.6,3428.3,0.29231]
[1735541922473,5.03736665,3428.6,3428.5,0.29229]
[1735541922973,0.43853988,3428.6,3428.5,0.29229]
[1735541923973,3.88332945,3428.6,3428.5,0.29229]
[1735541924879,3.54732774,3428.6,3428.5,2.6188825]
[1735541925175,2.64079125,3428.6,3428.5,0.29229]
[1735541926276,0.8628,3429.2,3428.4,9.15873642]
[1735541926575,0.8628,3429.2,3429.0,5.5343925]
[1735541926775,0.8628,3429.2,3429.1,1.166]
[1735541928281,0.8628,3429.2,3428.7,2.6188625]
[1735541928479,3.2078,3429.1,3428.7,2.6188625]
[1735541928982,7.80662677,3429.1,3428.7,2.3265925]
[1735541930078,7.80662677,3429.1,3428.7,2.6188625]
[1735541930779,4.59882677,3429.1,3428.8,0.29227]
[1735541931377,5.46162677,3429.2,3428.8,0.29227]
[1735541931881,5.46162677,3429.2,3428.6,0.29228]
[1735541932777,5.46162677,3429.2,3428.7,0.29228]
[1735541933382,4.59882677,3429.0,3428.8,0.29226]
[1735541933581,4.59882677,3429.0,3428.9,0.29226]
[1735541934583,4.59882677,3429.1,3428.9,0.29226]
[1735541934783,3.2078,3429.0,3428.2,4.55137296]